bitfinex/quotes_SOLUSD_20220119
["timestamp","ask_amount","ask_price","bid_price","bid_amount"]
[1642620713083,3.90941475,136.69,136.63,0.25]
[1642620716687,0.98241475,136.69,136.63,0.25]
[1642620718114,0.98241475,136.69,136.61,25.4339]
[1642620718313,2.80954077,136.69,136.61,2.926]
[1642620718513,2.80954077,136.69,136.59,2.927]
[1642620718514,2.927,136.68,136.59,2.927]
[1642620718715,2.927,136.68,136.57,10.51]
[1642620718914,6.82278501,136.68,136.58,2.927]
[1642620719114,6.82278501,136.68,136.58,45.46701645]
[1642620720117,4.99565899,136.68,136.58,45.46701645]
[1642620720317,4.99565899,136.68,136.59,0.25]
[1642620720720,78.30565899,136.68,136.59,0.25]
[1642620721216,4.99565899,136.68,136.59,0.25]
[1642620722017,6.0,136.67,136.59,0.25]
[1642620722615,6.97883549,136.67,136.59,0.25]
[1642620724521,2.927,136.66,136.59,0.25]
[1642620725320,2.927,136.66,136.58,22.5384]
[1642620725518,2.927,136.66,136.55,13.437]
[1642620725519,2.927,136.66,136.55,37.461]
[1642620725718,6.0,136.65,136.56,0.25]
[1642620725921,2.928,136.64,136.56,0.25]
[1642620726118,2.928,136.64,136.56,41.61479348]
[1642620726719,2.928,136.64,136.57,24.5237]
[1642620726919,6.0,136.65,136.57,24.5237]
[1642620727221,6.0,136.64,136.58,0.25]
[1642620727618,6.97167383,136.63,136.58,0.25]
[1642620727818,0.97167383,136.63,136.58,0.25]
[1642620731220,4.99665899,136.69,136.59,43.48437715]
[1642620731423,2.06865899,136.69,136.6,10.51]
[1642620731621,6.0,136.68,136.62,46.6965889]
[1642620731821,2.06865899,136.72,136.63,23.1501]
[1642620732123,2.06865899,136.74,136.65,46.31990598]
[1642620732322,2.06865899,136.75,136.66,83.86642675]
[1642620732519,2.06865899,136.75,136.68,44.59111955]
[1642620732720,2.06865899,136.75,136.69,2.924]
[1642620732924,2.926,136.77,136.69,2.924]
[1642620732925,2.06865899,136.76,136.69,2.924]
[1642620733125,2.06865899,136.76,136.69,25.5505]
[1642620734225,2.06865899,136.76,136.7,0.25]
[1642620736334,2.06865899,136.76,136.69,2.924]
[1642620736532,2.06865899,136.76,136.68,47.51511955]
[1642620737734,2.06865899,136.76,136.69,0.25]
[1642620737936,2.06865899,136.76,136.69,24.6278]
[1642620738736,2.06865899,136.76,136.68,2.924]
[1642620738737,3.89578501,136.76,136.68,2.924]
[1642620738938,8.924,136.75,136.66,2.924]
[1642620739236,2.06865899,136.74,136.64,27.2921]
[1642620739438,2.926,136.73,136.64,27.5421]
[1642620739636,2.926,136.73,136.65,48.51620472]
[1642620740037,2.926,136.73,136.66,0.25]
[1642620740238,2.926,136.73,136.66,6.368]
[1642620740443,10.99465899,136.75,136.68,47.87977696]
[1642620740639,2.06865899,136.76,136.69,2.924]
[1642620740838,2.06865899,136.76,136.69,8.728]
[1642620741241,2.06865899,136.77,136.69,8.988]
[1642620741440,2.06865899,136.77,136.71,37.16392769]
[1642620741639,8.924,136.76,136.71,37.16392769]
[1642620741841,6.0,136.76,136.71,37.16392769]
[1642620742038,4.99265899,136.78,136.71,37.16392769]
[1642620743240,4.99265899,136.78,136.72,0.25]
[1642620743442,2.06865899,136.79,136.72,0.25]
[1642620743940,6.81978501,136.8,136.72,0.25]
[1642620744140,3.89578501,136.79,136.71,2.924]
[1642620744340,2.924,136.78,136.69,2.924]
[1642620744541,4.99265899,136.78,136.71,0.25]
[1642620744741,1.82712602,136.77,136.71,0.25]
[1642620745940,1.82712602,136.77,136.69,26.992]
[1642620745941,6.0,136.76,136.7,0.25]
[1642620747750,4.99265899,136.78,136.7,0.25]
[1642620749451,6.0,136.77,136.7,0.25]
[1642620754682,8.924,136.77,136.7,0.25]
[1642620755083,10.99265899,136.77,136.7,0.25]
[1642620755284,8.06865899,136.77,136.7,0.25]
[1642620756083,2.06865899,136.76,136.69,26.992]
[1642620756283,4.99265899,136.76,136.64,2.924]
[1642620756485,26.07805899,136.75,136.64,27.7988]
[1642620756683,4.99465899,136.74,136.64,24.8748]
[1642620756885,6.82178501,136.74,136.62,42.91164644]
[1642620757085,3.89578501,136.73,136.63,6.25]
[1642620757385,2.926,136.72,136.63,6.25]
[1642620757585,2.926,136.72,136.62,62.55584644]
[1642620757786,4.75312602,136.72,136.62,22.5702]
[1642620757985,6.82178501,136.72,136.62,22.5702]
[1642620758792,6.82178501,136.72,136.62,65.84253363]
[1642620759191,2.06865899,136.71,136.62,65.84253363]
[1642620759391,2.926,136.7,136.62,65.84253363]
[1642620759996,4.99465899,136.7,136.62,65.84253363]
[1642620760196,2.06865899,136.7,136.62,65.84253363]
[1642620760597,2.06865899,136.71,136.62,65.84253363]
[1642620760801,4.99465899,136.7,136.62,65.84253363]
[1642620761002,4.99465899,136.7,136.62,22.5702]
[1642620762002,4.99465899,136.7,136.63,35.02934981]
[1642620762205,2.06865899,136.7,136.63,35.27934981]
[1642620762432,2.06865899,136.71,136.63,35.27934981]
[1642620762630,2.06865899,136.71,136.62,22.5702]
[1642620762831,8.926,136.7,136.62,22.5702]
[1642620763030,10.99465899,136.7,136.62,22.5702]
[1642620763333,8.926,136.7,136.62,22.5702]
[1642620763731,8.926,136.7,136.62,69.32164803]
[1642620765031,8.926,136.7,136.62,22.5702]
[1642620765838,73.17,136.69,136.58,2.926]
[1642620766136,2.927,136.68,136.59,36.8340767]
[1642620766535,2.927,136.68,136.6,0.25]
[1642620767335,26.1737,136.68,136.6,0.25]
[1642620767735,99.3437,136.68,136.58,0.25]
[1642620767937,99.3437,136.68,136.58,24.2926]
[1642620769842,6.0,136.67,136.58,24.2926]
[1642620770038,6.0,136.67,136.58,24.0426]
[1642620770640,6.0,136.67,136.57,2.927]
[1642620770842,4.75412602,136.66,136.54,22.8153]
[1642620771040,10.51,136.65,136.53,2.927]
[1642620771244,2.928,136.64,136.51,2.928]
[1642620771441,88.43512602,136.64,136.5,27.5043]
[1642620772051,88.43512602,136.64,136.51,46.80272164]
[1642620772345,88.43512602,136.64,136.52,2.928]
[1642620772741,88.43512602,136.64,136.53,0.25]
[1642620773542,73.17,136.62,136.53,0.25]
[1642620773741,2.928,136.61,136.53,0.25]
[1642620776445,2.928,136.61,136.52,25.4513]
[1642620776643,2.928,136.61,136.52,22.5233]
[1642620778544,6.0,136.6,136.52,22.5233]
[1642620778744,2.928,136.59,136.53,0.25]
[1642620778945,6.0,136.6,136.53,0.25]
[1642620779144,6.0,136.59,136.53,0.25]
[1642620779347,2.928,136.61,136.53,0.25]
[1642620779944,6.0,136.6,136.53,0.25]
[1642620780747,2.928,136.61,136.53,0.25]
[1642620780950,2.928,136.64,136.55,40.24148169]
[1642620781149,2.928,136.64,136.56,23.1396]
[1642620781351,2.928,136.64,136.56,23.3896]
[1642620784654,6.0,136.63,136.56,23.3896]
[1642620786854,6.0,136.63,136.56,23.1396]
[1642620787053,2.928,136.62,136.54,45.96101528]
[1642620787656,2.928,136.64,136.54,45.96101528]
[1642620788059,6.0,136.63,136.54,45.96101528]
[1642620788356,2.928,136.62,136.52,27.3716]
[1642620788585,2.928,136.62,136.53,0.25]
[1642620788756,2.928,136.62,136.52,27.3716]
[1642620788955,2.928,136.62,136.52,24.4436]
[1642620789156,2.928,136.62,136.52,69.80313814]
[1642620789956,2.928,136.62,136.52,27.3716]
[1642620790158,2.928,136.62,136.53,0.25]
[1642620791360,2.928,136.62,136.52,24.4436]
[1642620792059,2.928,136.63,136.52,24.4436]
[1642620792860,2.928,136.63,136.53,0.25]
[1642620794564,6.0,136.62,136.53,0.25]
[1642620794763,2.928,136.61,136.53,0.25]
[1642620795166,6.0,136.6,136.53,0.25]
[1642620795364,2.928,136.62,136.53,0.25]
[1642620795767,4.99665899,136.64,136.53,0.25]
[1642620795964,2.06865899,136.63,136.53,0.25]
[1642620796196,2.928,136.62,136.53,0.25]
[1642620796394,2.928,136.62,136.52,24.4436]
[1642620796795,4.99665899,136.62,136.52,24.4436]
[1642620796994,28.57075899,136.62,136.52,24.4436]
[1642620797596,30.39788501,136.62,136.52,24.4436]
[1642620797796,73.17,136.61,136.52,24.4436]
[1642620798096,2.928,136.6,136.52,24.4436]
[1642620798296,2.928,136.6,136.5,2.928]
[1642620798500,1.82712602,136.59,136.5,25.8986]
[1642620798801,2.928,136.58,136.5,2.928]
[1642620799000,10.51,136.57,136.5,2.928]
[1642620799199,2.928,136.56,136.5,2.928]
[1642620800899,2.928,136.56,136.46,49.19362016]
[1642620801103,2.928,136.56,136.47,24.4173]
[1642620801700,2.928,136.56,136.48,0.25]
[1642620801902,10.51,136.57,136.49,47.66707161]
[1642620802102,10.51,136.57,136.5,22.6414]
[1642620803201,10.51,136.57,136.5,22.1414]
[1642620803404,2.928,136.56,136.5,22.1414]
[1642620804704,13.438,136.57,136.5,22.1414]
[1642620806003,6.0,136.56,136.5,22.1414]
[1642620809809,6.0,136.56,136.51,37.06833912]
[1642620811914,6.0,136.56,136.5,22.1414]
[1642620815853,2.928,136.57,136.5,62.43544093]
[1642620816151,2.928,136.59,136.5,62.43544093]
[1642620816352,4.99665899,136.61,136.51,0.25]
[1642620816553,4.99665899,136.61,136.51,3.178]
[1642620817056,2.928,136.61,136.51,3.178]
[1642620817256,2.928,136.61,136.52,23.6436]
[1642620817455,2.928,136.61,136.53,35.12768937]
[1642620818555,6.0,136.6,136.53,35.12768937]
[1642620818755,2.928,136.59,136.49,2.928]
[1642620819357,2.928,136.59,136.48,2.928]
[1642620819560,2.928,136.59,136.47,4.93681018]
[1642620819561,25.8086,136.59,136.47,4.93681018]
[1642620819758,25.8086,136.59,136.47,63.14103453]
[1642620819958,25.8086,136.59,136.47,60.21303453]
[1642620820767,25.8086,136.59,136.48,0.25]
[1642620821061,25.8086,136.59,136.47,60.21303453]
[1642620821262,27.87725899,136.59,136.47,58.20422435]
[1642620821962,27.87725899,136.59,136.47,60.21303453]
[1642620823064,6.0,136.58,136.47,60.21303453]
[1642620823263,2.928,136.57,136.47,60.21303453]
[1642620823864,2.928,136.57,136.47,12.51881018]
[1642620824266,2.928,136.57,136.47,10.51]
[1642620824465,26.7642,136.57,136.47,10.51]
[1642620825166,26.7642,136.57,136.46,4.93681018]
[1642620825365,73.17,136.56,136.46,4.93681018]
[1642620825569,2.93,136.55,136.45,25.44321018]
[1642620825768,25.6111,136.55,136.46,0.25]
[1642620826465,27.67975899,136.55,136.46,0.25]
[1642620826866,7.28691524,136.54,136.46,0.25]
[1642620827667,7.28691524,136.54,136.45,0.25]
[1642620828069,9.35557423,136.54,136.45,24.451]
[1642620829170,9.35557423,136.54,136.45,24.201]
[1642620829371,2.06865899,136.53,136.45,24.201]
[1642620829570,2.93,136.52,136.45,24.201]
[1642620830773,4.99865899,136.52,136.45,24.201]
[1642620831575,2.93,136.52,136.45,24.201]
[1642620833475,2.93,136.53,136.45,24.201]
[1642620834175,6.0,136.52,136.45,24.201]
[1642620835177,6.0,136.52,136.45,72.92936307]
[1642620835679,6.0,136.52,136.45,24.201]
[1642620837981,6.0,136.52,136.46,0.25]
[1642620838181,6.0,136.52,136.46,6.243]
[1642620838382,25.6111,136.55,136.46,6.243]
[1642620838581,25.6111,136.55,136.47,65.8671481]
[1642620838981,22.6811,136.55,136.47,65.8671481]
[1642620839381,10.51,136.56,136.47,65.8671481]
[1642620840385,4.99865899,136.57,136.47,65.8671481]
[1642620840586,2.06865899,136.58,136.48,3.18]
[1642620840783,4.99865899,136.59,136.5,41.38366682]
[1642620840984,2.06865899,136.6,136.51,27.9275]
[1642620841208,2.06865899,136.6,136.51,28.1775]
[1642620842312,2.06865899,136.6,136.51,24.9995]
[1642620842508,12.82378501,136.59,136.51,24.9995]
[1642620842911,1.82712602,136.58,136.51,24.9995]
[1642620843208,2.928,136.57,136.51,24.9995]
[1642620843409,2.928,136.58,136.52,0.25]
[1642620843609,4.99665899,136.6,136.52,0.25]
[1642620844311,2.06865899,136.61,136.53,2.928]
[1642620844509,6.0,136.6,136.53,2.928]
[1642620844710,6.0,136.6,136.54,0.25]
[1642620844909,2.06865899,136.62,136.54,7.465]
[1642620845110,2.06865899,136.63,136.55,2.928]
[1642620845313,2.06865899,136.63,136.56,23.3971]
[1642620846814,2.06865899,136.63,136.56,63.22120508]
[1642620848414,2.06865899,136.63,136.56,23.1471]
[1642620848616,7.82712602,136.62,136.56,23.1471]
[1642620848815,2.928,136.61,136.52,2.928]
[1642620849014,2.928,136.61,136.53,0.25]
[1642620849215,8.06865899,136.62,136.53,0.25]
[1642620849416,8.06865899,136.62,136.53,39.76817921]
[1642620849615,6.0,136.62,136.54,24.4669]
[1642620849815,8.928,136.62,136.54,24.4669]
[1642620850217,2.928,136.62,136.54,24.4669]
[1642620850516,2.928,136.62,136.55,0.25]
[1642620850719,2.06865899,136.64,136.55,0.25]
[1642620851417,2.06865899,136.65,136.55,0.25]
[1642620851619,2.928,136.64,136.55,0.25]
[1642620851815,8.928,136.64,136.55,0.25]
[1642620852015,2.928,136.64,136.55,0.25]
[1642620852217,4.75512602,136.64,136.54,27.3949]
[1642620852517,6.0,136.63,136.54,24.4669]
[1642620852718,2.928,136.62,136.54,24.4669]
[1642620852917,4.75512602,136.62,136.54,24.4669]
[1642620853117,1.82712602,136.61,136.54,24.4669]
[1642620853321,2.928,136.6,136.54,24.4669]
[1642620853919,2.928,136.62,136.54,24.4669]
[1642620855322,4.99665899,136.65,136.55,3.178]
[1642620855523,6.0,136.64,136.55,3.178]
[1642620856122,6.0,136.64,136.56,23.4097]
[1642620856323,6.0,136.64,136.57,41.09673212]
[1642620856824,10.51,136.66,136.57,41.09673212]
[1642620857023,10.51,136.66,136.58,24.3847]
[1642620857225,2.927,136.65,136.58,24.3847]
[1642620857826,1.82712602,136.64,136.53,2.927]
[1642620858026,2.928,136.63,136.52,2.928]
[1642620858226,2.928,136.63,136.5,37.5612]
[1642620858628,6.0,136.62,136.51,41.48282777]
[1642620858833,6.0,136.62,136.52,2.928]
[1642620859029,6.0,136.62,136.52,27.7535]
[1642620859227,2.928,136.63,136.53,0.25]
[1642620859427,2.928,136.64,136.54,2.928]
[1642620859627,6.0,136.63,136.54,2.928]
[1642620859858,6.0,136.63,136.55,0.25]
[1642620860430,2.928,136.64,136.55,0.25]
[1642620861130,2.928,136.65,136.56,2.928]
[1642620861330,2.928,136.65,136.57,36.20061394]
[1642620861729,2.928,136.65,136.55,2.928]
[1642620861931,2.928,136.65,136.56,23.4781]
[1642620862129,12.57865899,136.66,136.56,23.4781]
[1642620862329,75.23865899,136.65,136.56,23.2281]
[1642620862530,12.57865899,136.64,136.56,23.2281]
[1642620862829,2.928,136.63,136.53,47.76365185]
[1642620863230,2.928,136.63,136.54,0.25]
[1642620863430,2.928,136.63,136.53,47.76365185]
[1642620863631,2.928,136.63,136.54,22.8148]
[1642620864131,6.0,136.62,136.54,22.8148]
[1642620865232,6.0,136.62,136.55,0.25]
[1642620867637,8.06865899,136.62,136.55,0.25]
[1642620867837,6.0,136.62,136.55,0.25]
[1642620869641,6.0,136.62,136.54,22.8148]
[1642620869841,4.99665899,136.61,136.54,22.8148]
[1642620870242,2.06865899,136.6,136.51,2.928]
[1642620870444,4.99665899,136.59,136.5,24.1005]
[1642620871141,2.06865899,136.58,136.5,24.1005]
[1642620871344,2.928,136.57,136.5,24.1005]
[1642620871542,4.99665899,136.57,136.5,24.1005]
[1642620871742,2.06865899,136.58,136.5,24.1005]
[1642620871942,4.99665899,136.57,136.5,24.1005]
[1642620872141,2.06865899,136.57,136.5,24.1005]
[1642620872343,2.928,136.56,136.5,24.1005]
[1642620872743,2.06865899,136.57,136.5,24.1005]
[1642620872943,2.928,136.56,136.5,24.1005]
[1642620873144,2.928,136.57,136.49,23.6276]
[1642620873346,4.99665899,136.57,136.49,23.6276]
[1642620873543,2.06865899,136.57,136.49,23.6276]
[1642620873745,8.928,136.56,136.49,23.6276]
[1642620873946,6.0,136.56,136.49,23.6276]
[1642620874746,4.99665899,136.58,136.49,23.6276]
[1642620877573,6.0,136.57,136.49,23.6276]
[1642620880770,4.10720809,136.61,136.51,110.37463848]
[1642620880971,4.10720809,136.64,136.51,134.00243848]
[1642620881171,4.10720809,136.64,136.52,21.02158855]
[1642620881471,2.182,136.63,136.52,13.688]
[1642620881679,4.10720809,136.65,136.54,47.41929798]
[1642620882072,14.61720809,136.66,136.54,47.41929798]
[1642620882271,8.184,136.65,136.54,47.41929798]
[1642620882472,8.184,136.65,136.53,24.613]
[1642620882671,32.0199,136.65,136.53,24.613]
[1642620882871,36.12710809,136.65,136.53,24.613]
[1642620884874,109.29710809,136.65,136.53,24.613]
[1642620885276,109.29710809,136.65,136.54,38.73306285]
[1642620885574,109.29710809,136.65,136.53,24.613]
[1642620886575,109.29710809,136.65,136.54,43.88047491]
[1642620887776,12.29120809,136.65,136.54,43.88047491]
[1642620887977,8.184,136.65,136.55,24.3719]
[1642620888179,6.0,136.65,136.55,37.8099]
[1642620888377,6.0,136.65,136.55,38.0699]
[1642620888878,14.61720809,136.68,136.55,38.0699]
[1642620889078,14.61720809,136.68,136.55,61.3843]
[1642620890182,8.61617488,136.69,136.57,40.90360522]
[1642620890379,5.68917488,136.69,136.58,13.437]
[1642620890578,6.0,136.68,136.58,13.687]
[1642620890779,6.0,136.68,136.58,13.947]
[1642620890979,6.0,136.68,136.58,38.9435]
[1642620891380,6.0,136.68,136.58,38.6835]
[1642620891784,8.927,136.68,136.58,35.7565]
[1642620893084,6.0,136.68,136.58,35.7565]
[1642620895185,6.0,136.68,136.58,36.0165]
[1642620895584,6.0,136.68,136.59,6.0]
[1642620895783,6.0,136.68,136.6,49.44290678]
[1642620895986,6.0,136.68,136.6,13.687]
[1642620896588,6.0,136.68,136.6,37.3582]
[1642620896885,6.0,136.68,136.61,42.49516612]
[1642620897286,2.927,136.71,136.62,0.25]
[1642620897487,4.10720809,136.72,136.62,99.8791]
[1642620897685,2.927,136.73,136.62,99.8791]
[1642620897686,7.03320809,136.74,136.62,99.8791]
[1642620897887,7.03320809,136.74,136.62,100.1391]
[1642620898084,2.926,136.74,136.62,100.1391]
[1642620898286,3.51145485,136.74,136.62,100.1391]
[1642620898685,6.0,136.73,136.62,100.1391]
[1642620899890,6.0,136.73,136.63,10.51]
[1642620900088,6.0,136.73,136.65,41.22358797]
[1642620900288,6.0,136.73,136.66,0.25]
[1642620901489,6.0,136.73,136.68,45.22023915]
[1642620901890,2.926,136.76,136.69,0.25]
[1642620902489,2.926,136.76,136.68,45.22023915]
[1642620903490,2.924,136.77,136.69,0.25]
[1642620903690,86.604,136.78,136.69,5.968]
[1642620904396,86.604,136.78,136.69,30.7639]
[1642620905493,6.0,136.77,136.69,30.7639]
[1642620906694,6.0,136.77,136.7,2.924]
[1642620906895,111.9,136.8,136.7,2.924]
[1642620907093,111.9,136.8,136.71,0.25]
[1642620907293,111.9,136.8,136.72,2.924]
[1642620907497,111.9,136.8,136.73,42.93434555]
[1642620907694,111.9,136.8,136.73,43.18434555]
[1642620908994,114.824,136.8,136.7,2.924]
[1642620909293,5.5,136.79,136.7,2.924]
[1642620909495,7.32712602,136.79,136.7,2.924]
[1642620909794,1.82712602,136.78,136.7,2.924]
[1642620909993,4.75112602,136.78,136.7,2.924]
[1642620910999,1.82712602,136.77,136.71,39.04314097]
[1642620911597,1.82712602,136.77,136.72,0.25]
[1642620911798,8.424,136.79,136.72,0.25]
[1642620913098,7.32712602,136.79,136.72,0.25]
[1642620913300,80.49712602,136.79,136.72,0.25]
[1642620913499,80.49712602,136.79,136.71,0.25]
[1642620913700,80.49712602,136.79,136.7,0.25]
[1642620914300,80.49712602,136.79,136.7,45.02429767]
[1642620914600,7.32712602,136.79,136.7,45.02429767]
[1642620915001,5.5,136.79,136.7,47.94829767]
[1642620919303,5.5,136.79,136.7,56.26229767]
[1642620919715,86.604,136.83,136.7,56.26229767]
[1642620919905,83.68,136.83,136.71,24.5258]
[1642620920103,83.68,136.83,136.72,2.924]
[1642620920304,83.68,136.83,136.73,24.2973]
[1642620920704,2.924,136.84,136.74,110.60770007]
[1642620920913,8.80182509,136.88,136.75,10.51]
[1642620921108,1.770617,136.88,136.76,8.923]
[1642620921307,1.770617,136.88,136.77,61.41273806]
[1642620921507,2.923,136.87,136.77,68.19073806]
[1642620921707,1.770617,136.88,136.78,3.173]
[1642620922907,4.693617,136.88,136.78,0.25]
[1642620924209,77.863617,136.88,136.78,0.25]
[1642620924409,77.863617,136.88,136.77,27.449]
[1642620924611,81.97082509,136.88,136.77,27.449]
[1642620924811,8.22200556,136.87,136.77,27.449]
[1642620925013,2.923,136.86,136.78,0.25]
[1642620925714,2.923,136.87,136.78,0.25]
[1642620926812,7.03020809,136.87,136.78,0.25]
[1642620928623,7.03020809,136.87,136.77,24.526]
[1642620928826,7.03020809,136.87,136.78,0.25]
[1642620930630,73.17,136.86,136.76,2.923]
[1642620930832,2.923,136.85,136.73,2.923]
[1642620931034,14.63113728,136.84,136.72,23.2799]
[1642620931228,2.924,136.83,136.72,23.2799]
[1642620931731,1.82712602,136.82,136.73,41.27834854]
[1642620931929,2.924,136.81,136.73,41.27834854]
[1642620932331,2.924,136.81,136.74,0.25]
[1642620932532,7.03120809,136.85,136.74,0.25]
[1642620932732,7.03120809,136.85,136.75,2.923]
[1642620932933,7.03120809,136.85,136.76,44.42107612]
[1642620933131,8.85833411,136.85,136.76,44.42107612]
[1642620933332,8.85833411,136.85,136.74,23.1695]
[1642620933533,81.40118966,136.84,136.74,23.1695]
[1642620933731,2.924,136.83,136.74,23.1695]
[1642620934332,4.75112602,136.83,136.72,2.924]
[1642620934532,10.51,136.82,136.72,2.924]
[1642620934732,2.924,136.81,136.72,2.924]
[1642620934933,4.75112602,136.81,136.72,2.924]
[1642620935532,4.75112602,136.81,136.71,41.88018287]
[1642620935733,4.75112602,136.81,136.72,0.25]
[1642620936734,2.924,136.81,136.72,0.25]
[1642620936934,14.61720809,136.82,136.72,3.174]
[1642620937135,10.51,136.82,136.72,3.174]
[1642620938138,17.54120809,136.82,136.72,0.25]
[1642620943674,2.924,136.82,136.72,0.25]
[1642620945075,77.27720809,136.83,136.74,41.12626338]
[1642620945275,77.27720809,136.83,136.75,26.8772]
[1642620945476,77.27720809,136.83,136.75,23.9532]
[1642620946478,73.17,136.83,136.75,26.8772]
[1642620946677,73.17,136.83,136.75,32.7802]
[1642620946976,77.27720809,136.83,136.75,32.7802]
[1642620947879,77.27720809,136.83,136.75,26.8772]
[1642620950183,8.24350107,136.82,136.75,2.924]
[1642620950386,4.10720809,136.81,136.76,0.25]
[1642620950585,4.10720809,136.82,136.76,0.25]
[1642620950783,8.24344075,136.82,136.76,0.25]
[1642620950985,77.27720809,136.83,136.76,0.25]
[1642620951586,77.27720809,136.83,136.74,0.25]
[1642620951786,77.27720809,136.83,136.75,2.924]
[1642620951986,80.20120809,136.83,136.76,39.55723478]
[1642620952183,8.24519872,136.82,136.77,0.25]
[1642620953585,4.13799063,136.82,136.77,0.25]
[1642620953784,80.20120809,136.83,136.77,0.25]
[1642620953986,77.27720809,136.83,136.77,0.25]
[1642620954186,8.24700645,136.82,136.77,0.25]
[1642620954784,77.27720809,136.83,136.77,0.25]
[1642620955185,4.14007671,136.82,136.77,0.25]
[1642620955385,8.2472848,136.82,136.77,0.25]
[1642620955586,77.27720809,136.83,136.77,0.25]
[1642620955787,4.10720809,136.83,136.77,0.25]
[1642620955987,2.923,136.84,136.77,0.25]
[1642620956288,2.923,136.84,136.78,10.51]
[1642620956690,2.923,136.84,136.79,0.25]
[1642620956886,2.923,136.84,136.79,56.43614978]
[1642620958189,4.10720809,136.86,136.79,59.35914978]
[1642620958388,4.10720809,136.87,136.79,59.35914978]
[1642620958591,4.10720809,136.87,136.79,82.46874978]
[1642620961592,4.10720809,136.86,136.79,79.54574978]
[1642620961790,4.10720809,136.86,136.79,71.51374978]
[1642620962191,4.10720809,136.86,136.76,2.923]
[1642620962394,4.10720809,136.85,136.77,23.9602]
[1642620962592,8.24352262,136.85,136.77,30.2102]
[1642620962792,4.10720809,136.85,136.77,30.2102]
[1642620963192,8.24352262,136.85,136.78,47.83255365]
[1642620963392,4.10720809,136.85,136.78,47.83255365]
[1642620963593,4.10720809,136.85,136.79,0.25]
[1642620963993,8.24352262,136.85,136.79,0.25]
[1642620964794,8.24352262,136.85,136.77,23.9602]
[1642620965023,11.16652262,136.85,136.76,2.923]
[1642620965223,73.17,136.83,136.76,2.923]
[1642620965421,8.24352262,136.84,136.76,2.923]
[1642620965621,2.923,136.83,136.76,2.923]
[1642620965821,2.923,136.83,136.77,44.02170884]
[1642620966223,7.03020809,136.83,136.77,44.02170884]
[1642620966524,4.10720809,136.83,136.77,44.02170884]
[1642620966725,4.10720809,136.83,136.78,0.25]
[1642620967124,4.10720809,136.85,136.78,0.25]
[1642620967526,4.10720809,136.86,136.78,0.25]
[1642620967924,4.10720809,136.86,136.78,24.1211]
[1642620968323,8.24136967,136.87,136.78,24.1211]
[1642620968524,8.24136967,136.87,136.79,2.923]
[1642620968724,8.24136967,136.87,136.8,0.25]
[1642620968923,4.10720809,136.87,136.8,8.386]
[1642620969223,4.10720809,136.87,136.8,56.14776864]
[1642620969424,8.24079232,136.88,136.81,13.433]
[1642620969626,4.10720809,136.9,136.81,14.76648547]
[1642620969824,4.10720809,136.91,136.82,6.25]
[1642620970023,4.10720809,136.92,136.83,10.51]
[1642620970228,4.10720809,136.93,136.84,0.25]
[1642620970426,4.10720809,136.93,136.84,6.25]
[1642620970624,4.10720809,136.94,136.84,6.25]
[1642620970824,4.10720809,136.94,136.86,45.42205308]
[1642620971433,4.10720809,136.93,136.85,23.2164]